bitfinex-derivatives/quotes_BTCF0:USTF0_20250919
["timestamp","ask_amount","ask_price","bid_price","bid_amount"]
[1758317136276,0.3911937,115500.0,115490.0,1.27399548]
[1758317139177,0.3911937,115500.0,115490.0,1.16511]
[1758317139377,0.1411937,115500.0,115490.0,1.16511]
[1758317144280,0.1411937,115500.0,115490.0,1.251646]
[1758317144981,0.1411937,115500.0,115490.0,1.16511]
[1758317152286,0.1411937,115500.0,115490.0,0.38367]
[1758317152480,0.3911937,115500.0,115490.0,0.3618]
[1758317152676,0.7519937,115500.0,115490.0,0.001]
[1758317152881,0.7695606,115500.0,115490.0,0.001]
[1758317154578,1.5509606,115500.0,115490.0,0.001]
[1758317154976,0.7695606,115500.0,115490.0,0.001]
[1758317155179,1.5510006,115500.0,115490.0,0.001]
[1758317155486,1.61905324,115500.0,115490.0,0.001]
[1758317161684,1.25825324,115500.0,115490.0,0.001]
[1758317161889,1.61905324,115500.0,115490.0,0.001]
[1758317163191,0.83761324,115500.0,115490.0,0.001]
[1758317163390,1.61905324,115500.0,115490.0,0.001]
[1758317167395,0.83761324,115500.0,115490.0,0.001]
[1758317167590,1.61905324,115500.0,115490.0,0.001]
[1758317173300,1.61909324,115500.0,115490.0,0.023]
[1758317175606,1.61909324,115500.0,115490.0,0.001]
[1758317175906,0.83761324,115500.0,115490.0,0.001]
[1758317176107,1.61909324,115500.0,115490.0,0.001]
[1758317177604,1.25829324,115500.0,115490.0,0.001]
[1758317177801,1.61909324,115500.0,115490.0,0.001]
[1758317182317,0.83761324,115500.0,115490.0,0.001]
[1758317182514,1.61909324,115500.0,115490.0,0.023]
[1758317190620,1.5510406,115500.0,115490.0,0.023]
[1758317192617,0.7695606,115500.0,115490.0,0.001]
[1758317192816,1.5510406,115500.0,115490.0,0.001]
[1758317198226,1.5510406,115500.0,115490.0,0.023]
[1758317199426,1.3010406,115500.0,115490.0,0.023]
[1758317199834,1.3010406,115500.0,115490.0,0.001]
[1758317201634,0.9402406,115500.0,115490.0,0.001]
[1758317201833,1.3010406,115500.0,115490.0,0.001]
[1758317207842,0.1209334,115480.0,115470.0,0.49168548]
[1758317208039,0.9024134,115480.0,115470.0,0.49168548]
[1758317208240,0.1209334,115480.0,115470.0,0.3828]
[1758317209540,0.1249334,115480.0,115470.0,0.3828]
[1758317210239,0.1299334,115480.0,115470.0,0.3828]
[1758317215146,0.13863236,115480.0,115470.0,0.3828]
[1758317228358,0.1299334,115480.0,115470.0,0.3828]
[1758317232056,0.13866534,115480.0,115470.0,0.3828]
[1758317240460,0.13866534,115480.0,115470.0,0.022]
[1758317240661,0.13866534,115480.0,115470.0,0.3828]
[1758317247867,0.1299334,115480.0,115470.0,0.3828]
[1758317261178,0.1299334,115480.0,115470.0,0.7436]
[1758317263179,0.1299334,115480.0,115470.0,0.830151]
[1758317285599,0.1299334,115480.0,115470.0,0.93903648]
[1758317294609,0.1299334,115480.0,115470.0,0.830151]
[1758317297011,0.1299334,115480.0,115470.0,0.833861]
[1758317297012,0.0955434,115480.0,115470.0,0.833861]
[1758317297313,0.1171434,115480.0,115470.0,0.833861]
[1758317298308,0.1171434,115480.0,115470.0,0.820151]
[1758317298616,0.1297734,115480.0,115470.0,0.820151]
[1758317302005,0.1297734,115480.0,115470.0,0.92903648]
[1758317307320,0.1081736,115480.0,115470.0,0.92903648]
[1758317307726,0.1081736,115480.0,115470.0,1.71035648]
[1758317310922,0.1304936,115480.0,115470.0,0.92903648]
[1758317311130,0.1304936,115480.0,115470.0,1.71035648]
[1758317316333,0.1304936,115480.0,115470.0,0.92903648]
[1758317316522,0.0955436,115480.0,115470.0,1.71035648]
[1758317318538,0.0955436,115480.0,115470.0,0.92903648]
[1758317318729,0.0955436,115480.0,115470.0,1.71035648]
[1758317318929,0.1092536,115480.0,115470.0,1.71035648]
[1758317320039,0.1315736,115480.0,115470.0,1.71035648]
[1758317322643,0.1315736,115480.0,115470.0,0.92903648]
[1758317322842,0.1315736,115480.0,115470.0,1.71035648]
[1758317324945,0.0955436,115480.0,115470.0,1.71035648]
[1758317326440,0.0955436,115480.0,115470.0,0.98875648]
[1758317326645,0.0955436,115480.0,115470.0,1.71035648]
[1758317329547,0.1092536,115480.0,115470.0,1.601471]
[1758317331450,0.1315736,115480.0,115470.0,0.820151]
[1758317331751,0.1315736,115480.0,115470.0,1.601471]
[1758317333550,0.1315736,115480.0,115470.0,0.820151]
[1758317333748,0.1315736,115480.0,115470.0,1.601471]
[1758317337653,0.1315736,115480.0,115470.0,0.820151]
[1758317337854,0.1315736,115480.0,115470.0,1.601431]
[1758317342161,0.1092536,115480.0,115470.0,1.601431]
[1758317342852,0.1092536,115480.0,115470.0,0.820151]
[1758317343057,0.1092536,115480.0,115470.0,1.601431]
[1758317343655,0.009,115480.0,115470.0,1.601431]
[1758317343854,0.009,115480.0,115470.0,1.851431]
[1758317344752,0.009,115480.0,115470.0,1.96031648]
[1758317344949,0.009,115480.0,115470.0,1.17903648]
[1758317345256,0.009,115480.0,115470.0,1.96031648]
[1758317349163,0.009,115480.0,115470.0,1.851431]
[1758317349364,0.009,115480.0,115470.0,1.9604051]
[1758317364578,0.009,115480.0,115470.0,1.1791251]
[1758317364774,0.009,115480.0,115470.0,1.9603251]
[1758317365480,0.009,115480.0,115470.0,1.851351]
[1758317366173,0.009,115480.0,115470.0,1.96030875]
[1758317368979,0.009,115480.0,115470.0,1.851351]
[1758317369380,0.009,115480.0,115470.0,1.96030875]
[1758317372282,0.009,115480.0,115470.0,1.851351]
[1758317373480,0.009,115480.0,115470.0,1.96030875]
[1758317374389,0.009,115480.0,115470.0,1.23870875]
[1758317374588,0.009,115480.0,115470.0,1.96030875]
[1758317374785,0.009,115480.0,115470.0,1.17910875]
[1758317374988,0.009,115480.0,115470.0,1.96026875]
[1758317379389,0.009,115480.0,115470.0,1.71026875]
[1758317381885,0.009,115480.0,115470.0,1.601311]
[1758317384494,0.009,115480.0,115470.0,1.7103801]
[1758317388300,0.0955436,115480.0,115470.0,1.7103401]
[1758317389098,0.009,115480.0,115470.0,1.7103401]
[1758317392007,0.009,115480.0,115470.0,1.601271]
[1758317392499,0.009,115480.0,115470.0,1.7103401]
[1758317393901,0.006,115480.0,115470.0,1.7103401]
[1758317394799,0.002,115480.0,115470.0,1.7103401]
[1758317395001,0.004,115480.0,115470.0,1.7103401]
[1758317402197,0.004,115480.0,115470.0,1.601271]
[1758317407308,0.0905435,115480.0,115470.0,1.601271]
[1758317408108,0.0905435,115480.0,115470.0,0.820151]
[1758317408308,0.0905435,115480.0,115470.0,1.601231]
[1758317408708,0.0905435,115480.0,115470.0,0.820151]
[1758317408908,0.0905435,115480.0,115470.0,1.601231]
[1758317412910,0.004,115480.0,115470.0,1.601231]
[1758317417613,0.004,115480.0,115470.0,0.879631]
[1758317417814,0.004,115480.0,115470.0,1.601231]
[1758317421722,0.0905435,115480.0,115470.0,0.820151]
[1758317421916,0.0905435,115480.0,115470.0,1.601191]
[1758317425022,0.004,115480.0,115470.0,1.601191]
[1758317432225,0.004,115480.0,115470.0,1.71029808]
[1758317433116,0.004,115480.0,115470.0,1.601191]
[1758317439930,0.0905435,115480.0,115470.0,1.601191]
[1758317440822,0.0905435,115480.0,115470.0,1.71029733]
[1758317449239,0.0905435,115480.0,115470.0,1.601191]
[1758317455442,0.0905435,115480.0,115470.0,1.7103026]
[1758317460438,0.0905435,115480.0,115470.0,0.9292626]
[1758317460645,0.0905435,115480.0,115470.0,1.7102226]
[1758317465243,0.0905435,115480.0,115470.0,1.601111]
[1758317468852,0.0905435,115480.0,115470.0,1.71022184]
[1758317478458,0.0905435,115480.0,115470.0,1.71018184]
[1758317484554,0.0905435,115480.0,115470.0,1.601071]
[1758317487463,0.004,115480.0,115470.0,1.601071]
[1758317487961,0.004,115480.0,115470.0,1.71017287]
[1758317489054,0.004,115480.0,115470.0,1.601071]
[1758317492966,0.004,115480.0,115470.0,0.879471]
[1758317493169,0.004,115480.0,115470.0,1.7101173]
[1758317494667,0.004,115480.0,115470.0,1.601071]
[1758317496970,0.004,115480.0,115470.0,1.71011044]
[1758317501370,0.004,115480.0,115470.0,1.601071]
[1758317504776,0.004,115480.0,115470.0,1.606551]
[1758317504965,0.004,115480.0,115470.0,1.606511]
[1758317505871,0.004,115480.0,115470.0,0.820151]
[1758317506072,0.004,115480.0,115470.0,1.606431]
[1758317508077,0.004,115480.0,115470.0,0.820151]
[1758317508281,0.004,115480.0,115470.0,1.606431]
[1758317522587,0.004,115480.0,115470.0,0.820151]
[1758317522787,0.004,115480.0,115470.0,1.605871]
[1758317527686,0.004,115480.0,115470.0,1.76153147]
[1758317531689,0.004,115480.0,115470.0,1.605871]
[1758317544402,0.004,115480.0,115470.0,0.884271]
[1758317544596,0.004,115480.0,115470.0,1.605871]
[1758317548800,0.004,115480.0,115470.0,0.820151]
[1758317549002,0.004,115480.0,115470.0,1.604991]
[1758317549202,0.004,115480.0,115470.0,1.76065147]
[1758317551501,0.004,115480.0,115470.0,1.03905147]
[1758317551804,0.004,115480.0,115470.0,1.76065147]
[1758317552407,0.004,115480.0,115470.0,1.604991]
[1758317555009,0.004,115480.0,115470.0,0.883391]
[1758317555307,0.004,115480.0,115470.0,1.604991]
[1758317560611,0.004,115480.0,115470.0,0.883391]
[1758317560814,0.004,115480.0,115470.0,1.604991]
[1758317562329,0.004,115480.0,115470.0,0.883391]
[1758317562519,0.004,115480.0,115470.0,1.604991]
[1758317564926,0.004,115480.0,115470.0,0.820151]
[1758317565123,0.03958,115480.0,115470.0,1.604351]
[1758317566026,0.03958,115480.0,115470.0,1.71341631]
[1758317568629,0.03958,115480.0,115470.0,0.92921631]
[1758317568928,0.03958,115480.0,115470.0,1.71365631]
[1758317570330,0.03958,115480.0,115470.0,1.604591]
[1758317570530,0.03958,115480.0,115470.0,1.604551]
[1758317570832,0.03958,115480.0,115470.0,1.76021147]
[1758317572434,0.03958,115480.0,115470.0,1.604551]
[1758317581042,0.01785,115480.0,115470.0,1.604551]
[1758317581340,0.004,115480.0,115470.0,1.604551]
[1758317583244,0.004,115480.0,115470.0,1.71359802]
[1758317583940,0.002,115480.0,115470.0,1.71559802]
[1758317584540,0.01266,115490.0,115480.0,0.0865445]
[1758317584740,0.03589,115490.0,115480.0,0.4594445]
[1758317585743,0.03789,115490.0,115480.0,0.4594445]
[1758317587139,0.03989,115490.0,115480.0,0.4594445]
[1758317590248,0.126427,115490.0,115480.0,0.4594445]
[1758317590744,0.03989,115490.0,115480.0,0.4594445]
[1758317591744,0.03989,115490.0,115480.0,0.56849152]
[1758317592046,0.126427,115490.0,115480.0,0.56849152]
[1758317593338,0.126427,115490.0,115480.0,0.92929152]
[1758317606453,0.126427,115490.0,115480.0,0.20769152]
[1758317606754,0.126427,115490.0,115480.0,0.92929152]
[1758317614360,0.03989,115490.0,115480.0,0.92929152]
[1758317616564,0.03989,115490.0,115480.0,0.8202445]
[1758317626366,0.03989,115490.0,115480.0,0.92929152]
[1758317640481,0.03989,115490.0,115480.0,0.8202445]
[1758317644684,0.01666,115490.0,115480.0,0.8202445]
[1758317644876,0.004,115490.0,115480.0,0.8242045]
[1758317645184,0.004,115490.0,115480.0,1.0742045]
[1758317648381,0.004,115490.0,115480.0,1.18311425]
[1758317649279,0.004,115490.0,115480.0,0.93311425]
[1758317649480,0.004,115490.0,115480.0,0.8242045]
[1758317649679,0.004,115490.0,115480.0,0.97986497]
[1758317650474,0.004,115490.0,115480.0,0.8242045]
[1758317663789,0.004,115490.0,115480.0,2.3242045]
[1758317667794,0.004,115490.0,115480.0,0.8242045]
[1758317678294,0.004,115490.0,115480.0,0.93304433]
[1758317680600,0.004,115490.0,115480.0,0.8242045]
[1758317681000,0.004,115490.0,115480.0,0.97986497]
[1758317683605,0.004,115490.0,115480.0,0.98431497]
[1758317690511,0.004,115490.0,115480.0,0.8286545]
[1758317698918,0.004,115490.0,115480.0,1.6240145]
[1758317700318,0.004,115490.0,115480.0,1.77967497]
[1758317700615,0.004,115490.0,115480.0,0.98431497]
[1758317700816,0.004,115490.0,115480.0,1.77939497]
[1758317704211,0.004,115490.0,115480.0,1.77915497]
[1758317704820,0.004,115490.0,115480.0,0.98431497]
[1758317705022,0.004,115490.0,115480.0,1.77887497]
[1758317708626,0.004,115490.0,115480.0,0.98431497]
[1758317708827,0.004,115490.0,115480.0,1.77855497]
[1758317709930,0.004,115490.0,115480.0,1.77843497]
[1758317710228,0.004,115490.0,115480.0,1.77839497]
[1758317712228,0.004,115490.0,115480.0,1.6227345]
[1758317718634,0.004,115490.0,115480.0,1.77839497]
[1758317721034,0.004,115490.0,115480.0,1.05679497]
[1758317721236,0.004,115490.0,115480.0,1.77839497]
[1758317736353,0.004,115490.0,115480.0,1.6227345]
[1758317740758,0.004,115490.0,115480.0,0.8286545]
[1758317741057,0.004,115490.0,115480.0,1.6215345]
[1758317748369,0.004,115490.0,115480.0,1.6208145]
[1758317751068,0.004,115490.0,115480.0,1.77647497]
[1758317756366,0.004,115490.0,115480.0,1.6208145]
[1758317761274,0.004,115490.0,115480.0,1.72960304]
[1758317761675,0.004,115490.0,115480.0,1.6208145]
[1758317763369,0.004,115490.0,115480.0,1.72960304]
[1758317765677,0.004,115490.0,115480.0,1.72872304]
[1758317766480,0.004,115490.0,115480.0,1.72868304]
[1758317771383,0.004,115490.0,115480.0,1.6198945]
[1758317771777,0.004,115490.0,115480.0,1.77555497]
[1758317774981,0.004,115490.0,115480.0,1.6198945]
[1758317776588,0.004,115490.0,115480.0,1.77555497]
[1758317778386,0.004,115490.0,115480.0,1.6198945]
[1758317787893,0.004,115490.0,115480.0,1.82203166]
[1758317789193,0.004,115490.0,115480.0,1.6198945]
[1758317793796,0.004,115490.0,115480.0,0.8286545]
[1758317793997,0.004,115490.0,115480.0,1.6176545]
[1758317797303,0.004,115490.0,115480.0,0.8960545]
[1758317797601,0.004,115490.0,115480.0,1.6176545]
[1758317798702,0.004,115490.0,115480.0,3.4411745]
[1758317798900,0.004,115490.0,115480.0,3.4408545]
[1758317803700,0.004,115490.0,115480.0,3.64299166]
[1758317805399,0.004,115490.0,115480.0,2.85431166]
[1758317805600,0.004,115490.0,115480.0,3.64247166]
[1758317806099,0.004,115490.0,115480.0,3.4403345]
[1758317807606,0.004,115490.0,115480.0,2.7187345]
[1758317807802,0.004,115490.0,115480.0,3.4403345]
[1758317813823,0.004,115490.0,115480.0,3.59580735]
[1758317822018,0.004,115490.0,115480.0,3.4403345]
[1758317822722,0.004,115490.0,115480.0,2.6521745]
[1758317822922,0.01757,115490.0,115480.0,3.4355745]
[1758317823229,0.01757,115490.0,115480.0,3.59106879]
[1758317824024,0.01757,115490.0,115480.0,3.4355745]
[1758317824725,0.004,115490.0,115480.0,3.4355745]
[1758317827527,0.004,115490.0,115480.0,2.7139745]
[1758317827726,0.004,115490.0,115480.0,3.4355745]
[1758317827921,0.004,115490.0,115480.0,3.45576546]
[1758317828321,0.004,115490.0,115480.0,1.63224546]
[1758317834940,0.004,115490.0,115480.0,1.78767277]
[1758317836136,0.002,115490.0,115480.0,1.78967277]
[1758317836332,0.03085884,115510.0,115480.0,1.78967277]
[1758317836539,0.05306884,115510.0,115500.0,0.93437705]
[1758317836731,0.05306884,115510.0,115500.0,1.72125705]
[1758317839441,0.05306884,115510.0,115500.0,1.72570705]
[1758317839641,0.05306884,115510.0,115500.0,1.73423381]
[1758317839942,0.05406884,115510.0,115500.0,1.73423381]
[1758317842342,0.05406884,115510.0,115500.0,1.62540706]
[1758317845740,0.05406884,115510.0,115500.0,1.73423381]
[1758317854453,0.05406884,115510.0,115500.0,1.62540706]
[1758317855645,0.01444,115510.0,115500.0,1.62540706]
[1758317855844,0.01444,115510.0,115500.0,1.64577588]
[1758317857151,0.01444,115510.0,115500.0,1.75459525]
[1758317863653,0.01444,115510.0,115500.0,1.64577588]
[1758317864659,0.01444,115510.0,115500.0,1.7545674]
[1758317865659,0.001,115510.0,115500.0,2.0045674]
[1758317865854,0.001,115510.0,115500.0,1.89577588]
[1758317866055,0.001,115510.0,115500.0,2.06904588]
[1758317866559,0.001,115510.0,115500.0,2.22433066]
[1758317867459,0.001,115510.0,115500.0,2.22428407]
[1758317874666,0.001,115510.0,115500.0,2.06904588]
[1758317880469,0.001,115510.0,115500.0,2.17756439]
[1758317880670,0.001,115510.0,115500.0,2.23266439]
[1758317880873,0.0001,115530.0,115520.0,0.1078953]
[1758317881067,0.01357,115540.0,115530.0,0.1039278]
[1758317881265,0.1004381,115550.0,115530.0,0.4647278]
[1758317881570,0.1230281,115550.0,115540.0,1.1474]
[1758317881766,0.3730281,115550.0,115540.0,1.1474]
[1758317881967,0.1230281,115550.0,115540.0,1.1474]
[1758317882169,0.1230281,115550.0,115540.0,1.15609734]
[1758317883073,0.1330281,115550.0,115540.0,1.15609734]
[1758317883676,0.1330281,115550.0,115540.0,1.24259764]
[1758317883973,0.1330281,115550.0,115540.0,1.31555118]
[1758317884972,0.1380281,115550.0,115540.0,1.31555118]
[1758317885172,0.1380281,115550.0,115540.0,1.22905088]
[1758317885377,0.1380281,115550.0,115540.0,1.31555118]
[1758317899790,0.1154328,115550.0,115540.0,1.31555118]
[1758317912602,0.1154328,115550.0,115540.0,1.67635118]
[1758317917707,0.1154328,115550.0,115540.0,0.95475118]
[1758317917904,0.1154328,115550.0,115540.0,1.67635118]
[1758317940731,0.1378928,115550.0,115540.0,1.69377118]
[1758317943930,0.1378928,115550.0,115540.0,1.60727088]
[1758317944139,0.3878928,115550.0,115540.0,1.58087354]
[1758317945440,0.3878928,115550.0,115540.0,0.79455354]
[1758317945735,0.3878928,115550.0,115540.0,1.58087354]
[1758317957741,0.3878928,115550.0,115540.0,1.59829354]
[1758317963240,0.3838928,115550.0,115540.0,1.59829354]
[1758317963441,0.3828928,115550.0,115540.0,1.59829354]
[1758317970859,0.3788928,115550.0,115540.0,1.59829354]
[1758317971045,0.3808928,115550.0,115540.0,1.59829354]
[1758317971350,0.3778928,115550.0,115540.0,1.59829354]
[1758317973551,0.3778928,115550.0,115540.0,0.87669354]
[1758317973755,0.3778928,115550.0,115540.0,1.59829354]
[1758317974151,0.3778928,115550.0,115540.0,1.68479384]
[1758317979258,0.1278928,115550.0,115540.0,1.68479384]
[1758317982960,0.1278928,115550.0,115540.0,0.96319384]
[1758317983161,0.1278928,115550.0,115540.0,1.68479384]
[1758317992776,0.1278928,115550.0,115540.0,1.59801354]
[1758318000181,0.1278928,115550.0,115540.0,0.81197354]
[1758318000379,0.1278928,115550.0,115540.0,0.79455354]
[1758318000576,0.1278928,115550.0,115540.0,1.58051354]
[1758318000776,0.3778928,115550.0,115540.0,0.79455354]
[1758318000977,0.3778928,115550.0,115540.0,1.58051354]
[1758318005082,0.3778928,115550.0,115540.0,1.512]
[1758318023000,0.39560604,115550.0,115540.0,1.512]
[1758318039310,0.14560604,115550.0,115540.0,1.512]
[1758318039510,0.14560604,115550.0,115540.0,1.16862]
[1758318045111,0.14560604,115550.0,115540.0,0.38266]
[1758318045309,0.14560604,115550.0,115540.0,1.16826]
[1758318066529,0.14560604,115550.0,115540.0,0.80746]
[1758318066731,0.14560604,115550.0,115540.0,1.16826]
[1758318082940,0.14560604,115550.0,115540.0,0.80746]
[1758318083147,0.14560604,115550.0,115540.0,1.16826]
[1758318105766,0.14560604,115550.0,115540.0,0.38266]
[1758318105961,0.14560604,115550.0,115540.0,1.16762]
[1758318135295,0.14560604,115550.0,115540.0,0.38266]
[1758318135495,0.14560604,115550.0,115540.0,1.16726]
[1758318141802,0.12314604,115550.0,115540.0,1.16726]
[1758318143104,0.1054328,115550.0,115540.0,1.16726]
[1758318161620,0.1281928,115550.0,115540.0,1.16726]
[1758318163118,0.1054328,115550.0,115540.0,1.16726]
[1758318163420,0.0914928,115550.0,115540.0,1.17419]
[1758318164119,0.1051728,115550.0,115540.0,1.16726]
[1758318178032,0.1265328,115550.0,115540.0,1.16726]
[1758318179731,0.1051728,115550.0,115540.0,1.16726]
[1758318179931,0.0914928,115550.0,115540.0,1.16726]
[1758318180633,0.1130728,115550.0,115540.0,0.80646]
[1758318180930,0.1130728,115550.0,115540.0,1.16726]
[1758318181130,0.1262328,115550.0,115540.0,1.16726]
[1758318205361,0.0914928,115550.0,115540.0,1.17419]
[1758318215168,0.0914928,115550.0,115540.0,1.16726]
[1758318215871,0.1049028,115550.0,115540.0,1.16726]
[1758318217169,0.0914928,115550.0,115540.0,1.16726]
[1758318226167,0.0914928,115550.0,115540.0,1.17419]
[1758318227673,0.0914928,115550.0,115540.0,1.16726]
[1758318227873,0.1049028,115550.0,115540.0,1.16726]
[1758318230684,0.1276728,115550.0,115540.0,0.38266]
[1758318230979,0.1276728,115550.0,115540.0,1.1667]
[1758318231781,0.0914928,115550.0,115540.0,1.1667]
[1758318231980,0.0914928,115550.0,115540.0,1.17363]
[1758318233482,0.0914928,115550.0,115540.0,1.5101303]
[1758318243182,0.0914928,115550.0,115540.0,1.2601303]
[1758318243685,0.0914928,115550.0,115540.0,0.4760903]
[1758318243886,0.1273028,115550.0,115540.0,1.2534803]
[1758318244088,0.1273028,115550.0,115540.0,0.38266]
[1758318244288,0.1273028,115550.0,115540.0,1.16694]
[1758318244786,0.1273028,115550.0,115540.0,0.38266]
[1758318244981,0.39465853,115550.0,115540.0,0.36524]
[1758318245186,0.1223103,115540.0,115530.0,0.37822]
[1758318245384,0.3723103,115540.0,115530.0,0.37822]
[1758318246891,0.3753103,115540.0,115530.0,0.37822]
[1758318247488,0.3773103,115540.0,115530.0,0.37822]
[1758318251391,0.1273103,115540.0,115530.0,0.37822]
[1758318262898,0.1273103,115540.0,115530.0,0.4647278]
[1758318264707,0.1273103,115540.0,115530.0,0.37822]
[1758318266107,0.1048103,115540.0,115530.0,0.37822]
[1758318266502,0.1274103,115540.0,115530.0,0.37822]
[1758318283914,0.1048103,115540.0,115530.0,0.37822]
[1758318284417,0.1274103,115540.0,115530.0,0.37822]
[1758318303632,0.0915003,115540.0,115530.0,0.37822]
[1758318304035,0.1281503,115540.0,115530.0,0.37822]
[1758318306536,0.1281503,115540.0,115530.0,1.16214]
[1758318307738,0.0915003,115540.0,115530.0,1.16214]
[1758318307941,0.0915003,115540.0,115530.0,1.1661]
[1758318329254,0.0915003,115540.0,115530.0,1.2526077]
[1758318329750,0.0915003,115540.0,115530.0,1.36129662]
[1758318334255,0.0915003,115540.0,115530.0,1.2526077]
[1758318344258,0.0915003,115540.0,115530.0,1.36129662]
[1758318344655,0.0915003,115540.0,115530.0,1.2526077]
[1758318345154,0.005,115540.0,115530.0,1.5026077]
[1758318345460,0.005,115540.0,115530.0,1.61129662]
[1758318356070,0.005,115540.0,115530.0,1.97209662]
[1758318359773,0.005,115540.0,115530.0,1.72209662]
[1758318362174,0.005,115540.0,115530.0,1.6134077]
[1758318374582,0.005,115540.0,115530.0,1.72220644]
[1758318382287,0.005,115540.0,115530.0,1.76864589]
[1758318386287,0.005,115540.0,115530.0,1.6134077]
[1758318393589,0.005,115540.0,115530.0,1.76864589]
[1758318400794,0.005,115540.0,115530.0,1.6134077]
[1758318410507,0.005,115540.0,115530.0,1.76864589]
[1758318411713,0.005,115540.0,115530.0,1.87749148]
[1758318412008,0.005,115540.0,115530.0,1.72225329]
[1758318412511,0.005,115540.0,115530.0,1.6134077]
[1758318422712,0.005,115540.0,115530.0,1.72218738]
[1758318427116,0.005,115540.0,115530.0,1.6134077]
[1758318427318,0.005,115540.0,115530.0,1.72217936]
[1758318436623,0.005,115540.0,115530.0,1.6134077]
[1758318437813,0.005,115540.0,115530.0,0.8294877]
[1758318438118,0.005,115540.0,115530.0,1.6122877]
[1758318451431,0.005,115540.0,115530.0,1.76752589]
[1758318454032,0.005,115540.0,115530.0,0.98472589]
[1758318454335,0.005,115540.0,115530.0,1.76736589]
[1758318465946,0.005,115540.0,115530.0,1.6121277]
[1758318468445,0.005,115540.0,115530.0,1.76736589]
[1758318478046,0.005,115540.0,115530.0,1.6121277]
[1758318484457,0.003,115540.0,115530.0,1.6121277]
[1758318484757,0.004,115540.0,115530.0,1.6121277]
[1758318485762,0.001,115540.0,115530.0,1.6121277]
[1758318488963,0.001,115540.0,115530.0,1.6672277]
[1758318489867,0.001,115540.0,115530.0,1.6121277]
[1758318491264,0.0996305,115590.0,115580.0,0.01582]
[1758318491560,0.0993348,115600.0,115580.0,1.54035084]
[1758318491766,0.1214348,115600.0,115590.0,0.37662]
[1758318492066,0.1214348,115600.0,115590.0,0.38549569]
[1758318492570,0.1214348,115600.0,115590.0,0.37662]
[1758318493162,0.1314348,115600.0,115590.0,0.38522776]
[1758318493364,0.1314348,115600.0,115590.0,0.37662]
[1758318493558,0.3864348,115600.0,115590.0,0.37662]
[1758318494867,0.1364348,115600.0,115590.0,0.37662]
[1758318495767,0.1364348,115600.0,115590.0,0.44645954]
[1758318498074,0.1364348,115600.0,115590.0,0.45528463]
[1758318511077,0.1364348,115600.0,115590.0,0.81608463]
[1758318518702,0.1364348,115600.0,115590.0,1.59812463]
[1758318519293,0.1364348,115600.0,115590.0,0.81608463]
[1758318519488,0.1364348,115600.0,115590.0,1.59808463]
[1758318519997,0.1364348,115600.0,115590.0,0.81608463]
[1758318520199,0.1364348,115600.0,115590.0,1.59808463]
[1758318527904,0.0864348,115600.0,115590.0,1.59808463]
[1758318528104,0.0990648,115600.0,115590.0,1.59808463]
[1758318531809,0.0864348,115600.0,115590.0,1.59808463]
[1758318532008,0.0864348,115600.0,115590.0,1.60401463]
[1758318537818,0.0643348,115600.0,115590.0,1.60401463]
[1758318539406,0.015,115600.0,115590.0,1.60401463]
[1758318539914,0.1014498,115600.0,115590.0,1.60401463]
[1758318540409,0.1374798,115600.0,115590.0,1.59792463]
[1758318542015,0.1374798,115600.0,115590.0,1.70655736]
[1758318544815,0.1374798,115600.0,115590.0,0.92471736]
[1758318545015,0.1374798,115600.0,115590.0,1.70655736]
[1758318546416,0.1374798,115600.0,115590.0,0.92471736]
[1758318546618,0.1374798,115600.0,115590.0,1.70651736]
[1758318553822,0.1014498,115600.0,115590.0,1.70651736]
[1758318556014,0.1148298,115600.0,115590.0,1.59788463]
[1758318557024,0.1376998,115600.0,115590.0,1.59784463]
[1758318559021,0.1376998,115600.0,115590.0,1.70647736]
[1758318567025,0.40486911,115600.0,115590.0,0.91589227]
[1758318567237,0.40486911,115600.0,115590.0,0.83023273]
[1758318567428,0.0996398,115590.0,115580.0,1.25111273]
[1758318567832,0.3496398,115590.0,115580.0,1.14248]
[1758318568724,0.3566398,115590.0,115580.0,1.14248]
[1758318569126,0.3606398,115590.0,115580.0,1.14248]
[1758318579245,0.1106398,115590.0,115580.0,1.14248]
[1758318579546,0.1331798,115590.0,115580.0,1.16508]
[1758318587846,0.1331798,115590.0,115580.0,0.3608]
[1758318588139,0.1331798,115590.0,115570.0,0.3608]
[1758318588140,0.1221874,115580.0,115570.0,0.3608]
[1758318588341,0.13976395,115580.0,115570.0,0.3608]
[1758318588545,0.38976395,115580.0,115570.0,0.3608]
[1758318589154,0.38976395,115580.0,115570.0,0.3121316]
[1758318589360,0.1221949,115570.0,115560.0,0.3608]
[1758318591153,0.1231949,115570.0,115560.0,0.3608]
[1758318592247,0.1241949,115570.0,115560.0,0.3608]
[1758318593051,0.1271949,115570.0,115560.0,0.3608]
[1758318600461,0.13590751,115570.0,115560.0,0.3608]
[1758318603259,0.13590751,115570.0,115560.0,0.38182]
[1758318603664,0.13590751,115570.0,115560.0,0.3608]
[1758318605981,0.1271949,115570.0,115560.0,0.3608]
[1758318609874,0.13597603,115570.0,115560.0,0.3608]
[1758318612381,0.1271949,115570.0,115560.0,0.3608]
[1758318618475,0.1271949,115570.0,115560.0,0.38182]
[1758318622988,0.1271949,115570.0,115560.0,0.3608]
[1758318625087,0.1271949,115570.0,115560.0,0.38267]
[1758318632593,0.1271949,115570.0,115560.0,0.3608]
[1758318633295,0.1271949,115570.0,115560.0,0.38267]
[1758318633696,0.1271949,115570.0,115560.0,0.3608]
[1758318635093,0.1271949,115570.0,115560.0,0.38267]
[1758318637598,0.1271949,115570.0,115560.0,0.3608]
[1758318638200,0.1271949,115570.0,115560.0,0.38267]
[1758318684042,0.9108749,115570.0,115560.0,0.38267]
[1758318687943,0.1271949,115570.0,115560.0,0.38267]
[1758318689740,0.9107549,115570.0,115560.0,0.38267]
[1758318690743,0.1271949,115570.0,115560.0,0.38267]
[1758318690944,0.9107149,115570.0,115560.0,0.38267]
[1758318692546,0.1271949,115570.0,115560.0,0.38267]
[1758318692747,0.9107149,115570.0,115560.0,0.38267]